bitfinex/quotes_BTCUSD_20251217
["timestamp","ask_amount","ask_price","bid_price","bid_amount"]
[1765949813228,0.08915967,86448.0,86447.0,0.00131333]
[1765949813575,0.08915967,86448.0,86447.0,0.00031333]
[1765949813576,0.14696923,86448.0,86447.0,0.00031333]
[1765949813777,0.0718082,86448.0,86447.0,0.00031333]
[1765949813995,0.23135027,86449.0,86447.0,0.00031333]
[1765949814383,0.001,86448.0,86447.0,0.00031333]
[1765949814943,0.23135027,86449.0,86447.0,0.00031333]
[1765949815385,0.1151,86448.0,86447.0,0.00031333]
[1765949815642,0.1151,86448.0,86447.0,0.00131333]
[1765949815885,0.23135027,86449.0,86447.0,0.00131333]
[1765949816333,0.23135027,86449.0,86447.0,0.00031333]
[1765949816535,0.32568802,86449.0,86447.0,0.00031333]
[1765949817236,0.05780956,86448.0,86447.0,0.00031333]
[1765949818451,0.05880956,86448.0,86447.0,0.00031333]
[1765949818898,0.1161,86448.0,86447.0,0.00031333]
[1765949821823,0.13345147,86448.0,86447.0,0.00031333]
[1765949822033,0.01835147,86448.0,86447.0,0.00031333]
[1765949822242,0.07616103,86448.0,86447.0,0.00031333]
[1765949822455,0.1861405,86448.0,86447.0,0.00031333]
[1765949822895,0.23615889,86448.0,86447.0,0.00031333]
[1765949823100,0.58414933,86448.0,86447.0,0.00031333]
[1765949823316,0.56679786,86448.0,86447.0,0.00031333]
[1765949824128,0.59148344,86448.0,86447.0,0.00031333]
[1765949824554,0.60219958,86448.0,86447.0,0.00031333]
[1765949824780,0.60683676,86448.0,86447.0,0.00031333]
[1765949826315,1.67984476,86448.0,86447.0,0.00031333]
[1765949826515,0.49685729,86448.0,86447.0,0.00031333]
[1765949826726,0.51521729,86448.0,86447.0,0.00031333]
[1765949828251,0.45792685,86448.0,86447.0,0.00031333]
[1765949829208,0.51521729,86448.0,86447.0,0.00031333]
[1765949831817,0.45792685,86448.0,86447.0,0.00031333]
[1765949836267,0.63154844,86448.0,86447.0,1e-08]
[1765949836486,0.63154844,86448.0,86434.0,0.00098181]
[1765949836487,1.55941093,86445.0,86444.0,1e-08]
[1765949836653,1.05323569,86435.0,86434.0,1e-08]
[1765949836861,1.05323569,86435.0,86434.0,7.837e-05]
[1765949836862,1.31319542,86435.0,86434.0,7.837e-05]
[1765949837063,1.35476263,86435.0,86434.0,7.837e-05]
[1765949837273,1.3295844,86435.0,86434.0,7.837e-05]
[1765949837737,1.39313993,86435.0,86434.0,7.837e-05]
[1765949837988,1.11847478,86435.0,86434.0,7.837e-05]
[1765949838397,1.11947478,86435.0,86434.0,7.837e-05]
[1765949838897,1.18604445,86435.0,86434.0,7.837e-05]
[1765949839074,1.19732912,86435.0,86434.0,7.837e-05]
[1765949839277,1.19728093,86435.0,86434.0,7.837e-05]
[1765949839478,1.31361208,86435.0,86434.0,7.837e-05]
[1765949839896,1.23680593,86435.0,86434.0,7.837e-05]
[1765949840259,1.23580593,86435.0,86434.0,7.837e-05]
[1765949840710,1.12256711,86435.0,86434.0,7.837e-05]
[1765949840882,0.99341783,86435.0,86434.0,7.837e-05]
[1765949841085,0.64939841,86435.0,86434.0,7.837e-05]
[1765949841341,0.9901168,86435.0,86434.0,7.837e-05]
[1765949842045,0.99007785,86435.0,86434.0,7.837e-05]
[1765949842319,1.106409,86435.0,86434.0,7.837e-05]
[1765949843858,0.83216237,86435.0,86434.0,7.837e-05]
[1765949845489,0.81380237,86435.0,86434.0,7.837e-05]
[1765949850855,0.52608774,86435.0,86434.0,7.837e-05]
[1765949851873,0.52408774,86435.0,86434.0,7.837e-05]
[1765949852883,0.52208774,86435.0,86434.0,7.837e-05]
[1765949853249,0.52208774,86435.0,86434.0,0.00107837]
[1765949853608,0.58564327,86435.0,86434.0,0.00107837]
[1765949853833,0.29494327,86435.0,86434.0,0.00107837]
[1765949854187,0.23138774,86435.0,86434.0,0.00107837]
[1765949855375,0.23138774,86435.0,86434.0,0.00269124]
[1765949856514,0.06355553,86436.0,86434.0,0.00169124]
[1765949856953,0.24874182,86435.0,86434.0,0.00569124]
[1765949857123,0.23138774,86435.0,86434.0,0.00569124]
[1765949857560,0.23138774,86435.0,86434.0,0.00369124]
[1765949857837,0.23138774,86435.0,86434.0,0.00269124]
[1765949858044,0.23138774,86435.0,86434.0,0.00469124]
[1765949858338,0.23138774,86435.0,86434.0,0.00369124]
[1765949858763,0.23138774,86435.0,86434.0,0.00307837]
[1765949858939,0.2891973,86435.0,86434.0,0.00837136]
[1765949859124,0.2891973,86435.0,86434.0,0.00637136]
[1765949859332,0.62991569,86435.0,86434.0,0.00637136]
[1765949859536,0.62991569,86435.0,86434.0,0.00737136]
[1765949859738,0.62991569,86435.0,86434.0,0.00537136]
[1765949860941,0.68720613,86435.0,86434.0,0.00537136]
[1765949861147,0.72259623,86435.0,86434.0,0.00537136]
[1765949861362,0.81342646,86435.0,86434.0,0.00537136]
[1765949862891,0.81342646,86435.0,86396.0,0.0002]
[1765949862892,0.23148951,86397.0,86396.0,0.0002]
[1765949863093,0.2998679,86397.0,86396.0,0.00057819]
[1765949863312,0.65752814,86397.0,86396.0,0.00057819]
[1765949863515,0.65752814,86397.0,86378.0,0.05]
[1765949863516,0.58001783,86390.0,86378.0,0.05]
[1765949863746,0.63003622,86390.0,86389.0,0.00571337]
[1765949863936,0.65470217,86390.0,86389.0,0.00571337]
[1765949864343,0.63003622,86390.0,86389.0,0.00571337]
[1765949864563,0.74165459,86390.0,86389.0,0.00571337]
[1765949864761,0.63103622,86390.0,86389.0,0.00571337]
[1765949864918,0.64939622,86390.0,86389.0,0.00571337]
[1765949868561,0.70668666,86390.0,86389.0,0.00571337]
[1765949868968,0.70668666,86390.0,86389.0,0.00714788]
[1765949869167,0.82301781,86390.0,86389.0,0.00714788]
[1765949869532,0.85782057,86390.0,86389.0,0.00714788]
[1765949869741,0.72312942,86390.0,86389.0,0.00714788]
[1765949869977,0.74148942,86390.0,86389.0,0.00714788]
[1765949870993,0.72312942,86390.0,86389.0,0.00714788]
[1765949871198,0.70668666,86390.0,86389.0,0.00714788]
[1765949872315,0.59158666,86390.0,86389.0,0.00714788]
[1765949872539,0.76572737,86390.0,86389.0,0.00714788]
[1765949872918,0.82301781,86390.0,86389.0,0.00714788]
[1765949874052,0.85782057,86390.0,86389.0,0.00714788]
[1765949875223,0.85682057,86390.0,86389.0,0.00714788]
[1765949875613,0.85982057,86390.0,86389.0,0.00714788]
[1765949875859,0.86182057,86390.0,86389.0,0.00714788]
[1765949876419,0.63005498,86383.0,86378.0,0.05]
[1765949876615,0.63005498,86383.0,86382.0,0.05011339]
[1765949877496,0.64841498,86383.0,86382.0,0.05011339]
[1765949877934,0.64941498,86383.0,86382.0,0.05011339]
[1765949878517,0.60039659,86383.0,86382.0,0.05011339]
[1765949879575,0.23352703,86383.0,86382.0,0.05172626]
[1765949880288,0.23352703,86383.0,86382.0,0.05011339]
[1765949880428,0.63205498,86383.0,86382.0,0.05011339]
[1765949880628,0.68834542,86383.0,86382.0,0.05011339]
[1765949881175,0.68734542,86383.0,86382.0,0.05011339]
[1765949881531,0.52322703,86383.0,86382.0,0.05011339]
[1765949881731,0.54158703,86383.0,86382.0,0.05011339]
[1765949881937,0.54058703,86383.0,86382.0,0.05011339]
[1765949882135,0.52222703,86383.0,86382.0,0.05011339]
[1765949882335,0.52422703,86383.0,86382.0,0.05011339]
[1765949882541,0.23352703,86383.0,86382.0,0.05011339]
[1765949882947,0.23252703,86383.0,86382.0,0.05011339]
[1765949883145,0.23352703,86383.0,86382.0,0.05011339]
[1765949883583,0.23252703,86383.0,86382.0,0.05011339]
[1765949884731,0.23152703,86383.0,86382.0,0.05011339]
[1765949884858,0.41839846,86383.0,86382.0,0.05011339]
[1765949885491,0.23152703,86383.0,86382.0,0.05011339]
[1765949886820,0.05369815,86383.0,86382.0,0.05011339]
[1765949889179,0.24310002,86385.0,86384.0,0.08302]
[1765949889384,0.01157474,86395.0,86387.0,0.01157581]
[1765949889598,0.01157407,86400.0,86398.0,0.036]
[1765949889799,0.01157407,86400.0,86398.0,0.03761287]
[1765949890308,0.24305768,86400.0,86398.0,0.03761287]
[1765949890606,0.24305768,86400.0,86399.0,0.12029]
[1765949890835,0.24305768,86400.0,86399.0,0.04702]
[1765949891396,0.24303911,86406.0,86400.0,0.01157407]
[1765949891656,0.24303911,86406.0,86402.0,0.0115738]
[1765949891657,0.01157327,86406.0,86402.0,0.0115738]
[1765949891792,0.01157327,86406.0,86401.0,0.23147824]
[1765949891793,0.01157367,86403.0,86400.0,0.00161287]
[1765949892196,0.01157353,86404.0,86403.0,0.04702]
[1765949892416,0.01157327,86406.0,86403.0,0.04702]
[1765949892788,0.01157286,86409.0,86406.0,0.04757327]
[1765949892991,0.01157286,86409.0,86406.0,0.10927]
[1765949893349,0.23146004,86408.0,86407.0,0.04702]
[1765949893552,0.23146004,86408.0,86403.0,0.00161287]
[1765949893553,0.23147076,86404.0,86403.0,0.00161287]
[1765949893778,0.0115738,86402.0,86397.0,0.01157447]
[1765949894022,0.01157246,86412.0,86409.0,0.07327]
[1765949894704,0.23145469,86410.0,86409.0,0.07327]
[1765949894908,0.01157193,86416.0,86413.0,0.04702]
[1765949895110,0.24300727,86418.0,86417.0,0.15629]
[1765949895111,0.01157166,86418.0,86417.0,0.15629]
[1765949895408,0.24300144,86420.0,86419.0,0.12029]
[1765949895786,0.24299315,86423.0,86422.0,0.12029]
[1765949896455,0.01157045,86427.0,86424.0,0.05859085]
[1765949896657,0.01157032,86428.0,86425.0,0.036]
[1765949896857,0.23143594,86417.0,86409.0,0.002]
[1765949897065,0.23143594,86417.0,86408.0,0.11356453]
[1765949897066,0.01157152,86419.0,86414.0,0.01157219]
[1765949897263,0.24300447,86419.0,86417.0,0.001]
[1765949897736,0.01156992,86431.0,86427.0,0.05859045]
[1765949897919,0.01156992,86431.0,86429.0,0.04702]
[1765949898102,0.23140113,86430.0,86429.0,0.04702]
[1765949898483,0.01156992,86431.0,86429.0,0.04702]
[1765949899091,0.01157005,86430.0,86427.0,0.002]
[1765949899724,0.23140646,86429.0,86427.0,0.002]
[1765949900134,0.23143326,86418.0,86417.0,0.00161287]
[1765949901230,0.23143326,86418.0,86417.0,0.00661287]
[1765949901395,0.23143326,86418.0,86417.0,0.00361287]
[1765949902114,0.23143326,86418.0,86417.0,0.00461287]
[1765949902720,0.01157019,86429.0,86425.0,0.10927]
[1765949902928,0.01157019,86429.0,86428.0,0.12029]
[1765949903334,0.24297382,86430.0,86428.0,0.12029]
[1765949903335,0.01156858,86441.0,86432.0,0.23139577]
[1765949903561,0.23136289,86445.0,86439.0,0.01156885]
[1765949903764,0.24293464,86443.0,86440.0,0.07327]
[1765949903923,0.01156871,86440.0,86439.0,0.12029]
[1765949904137,0.01156871,86440.0,86432.0,0.00161287]
[1765949904138,0.01156925,86436.0,86432.0,0.01318265]
[1765949904535,0.01156925,86436.0,86433.0,0.01156965]
[1765949904738,0.00037742,86436.0,86433.0,0.01156965]
[1765949904940,0.00037742,86436.0,86435.0,0.04702]
[1765949905142,0.00037742,86436.0,86435.0,0.12190287]
[1765949905348,0.00037742,86436.0,86435.0,0.2354674]
[1765949905984,0.0582584,86438.0,86436.0,0.16058453]
[1765949906181,0.23135707,86447.0,86438.0,0.04756898]
[1765949906384,0.01156737,86450.0,86449.0,0.12029]
[1765949906639,0.01168057,86450.0,86449.0,0.12029]
[1765949906827,0.01168057,86450.0,86449.0,0.04702]
[1765949907267,0.01168057,86450.0,86443.0,0.08483831]
[1765949907268,0.01156764,86448.0,86443.0,0.08483831]
[1765949907462,0.01156885,86439.0,86433.0,0.23139042]
[1765949907663,0.24292489,86447.0,86445.0,0.04702]
[1765949907873,0.24292489,86447.0,86445.0,0.12029]
[1765949908016,0.23137624,86440.0,86438.0,0.036]
[1765949908210,0.01156831,86443.0,86439.0,0.08483885]
[1765949908571,0.24293746,86442.0,86441.0,0.23385258]
[1765949908788,0.01156845,86442.0,86441.0,0.23385258]
[1765949909190,0.01156831,86443.0,86441.0,0.23385258]
[1765949909590,0.01156818,86444.0,86441.0,0.23385258]
[1765949909921,0.23136633,86443.0,86441.0,0.11356258]
[1765949910153,0.01156818,86444.0,86443.0,0.04702]
[1765949911616,0.01156818,86444.0,86443.0,0.04902]
[1765949912118,0.01156778,86447.0,86443.0,0.13385831]
[1765949912317,0.242919,86449.0,86445.0,0.08483804]
[1765949912582,0.01156764,86448.0,86445.0,0.07327]
[1765949914143,0.0001132,86450.0,86449.0,0.12035]
[1765949914327,0.0001132,86450.0,86449.0,0.35170027]
[1765949914531,0.0001132,86450.0,86449.0,0.04702]
[1765949915382,0.01168057,86450.0,86447.0,0.11356258]
[1765949915541,0.23135027,86449.0,86447.0,0.11356258]
[1765949915742,0.24292294,86448.0,86445.0,0.001]
[1765949915940,0.01156778,86447.0,86443.0,0.01156831]
[1765949916142,0.01156791,86446.0,86443.0,0.08183831]
[1765949916342,0.24292665,86446.0,86443.0,0.07027]
[1765949916563,0.01156791,86446.0,86443.0,0.07027]
[1765949917168,0.23136098,86445.0,86444.0,0.11777]
[1765949917372,0.23136098,86445.0,86443.0,0.002]
[1765949917373,0.23297385,86445.0,86443.0,0.002]
[1765949917574,0.23297385,86445.0,86443.0,0.001]
[1765949917914,0.26639933,86445.0,86443.0,0.001]
[1765949918202,0.23297385,86445.0,86443.0,0.002]
[1765949918563,0.01156764,86448.0,86447.0,0.0475]
[1765949918764,0.0001132,86450.0,86449.0,0.23133258]
[1765949919153,0.0001132,86450.0,86449.0,0.11777]
[1765949919996,0.23135027,86449.0,86444.0,0.01156818]
[1765949920240,0.24293646,86443.0,86439.0,0.01156885]
[1765949920635,0.01156911,86437.0,86432.0,0.01156978]
[1765949920972,0.01156911,86437.0,86433.0,0.3016631]
[1765949920973,0.01156925,86436.0,86433.0,0.3016631]
[1765949921173,0.01156925,86436.0,86435.0,0.0475]
[1765949921584,0.01156938,86435.0,86434.0,0.11356258]
[1765949921926,0.01156952,86434.0,86433.0,0.0475]
[1765949922128,0.01156992,86431.0,86426.0,0.07027]
[1765949922257,0.01156992,86431.0,86424.0,0.01836]
[1765949922258,0.23141221,86426.0,86424.0,0.01836]
[1765949922459,0.2429828,86426.0,86425.0,0.11777]
[1765949922683,0.24297278,86430.0,86425.0,0.11777]
[1765949923031,0.23138133,86438.0,86437.0,0.11777]
[1765949923708,0.01156885,86439.0,86437.0,0.11777]
[1765949924116,0.24293944,86442.0,86438.0,0.01156898]
[1765949924261,0.24293944,86442.0,86437.0,0.07027]
[1765949924262,0.23137704,86439.0,86437.0,0.07027]
[1765949924887,0.01156898,86438.0,86435.0,0.01156938]
[1765949925281,0.01156898,86438.0,86434.0,0.01156952]
[1765949925282,0.2429515,86437.0,86434.0,0.07027]
[1765949925485,0.01156898,86438.0,86434.0,0.07027]
[1765949925822,0.23137704,86439.0,86434.0,0.07027]
[1765949925823,0.23137704,86439.0,86438.0,0.0475]
[1765949926166,0.24294552,86440.0,86438.0,0.0475]
[1765949926391,0.01156965,86433.0,86431.0,0.07027]
[1765949926596,0.24296285,86433.0,86431.0,0.07027]
[1765949926805,0.01156965,86433.0,86431.0,0.07027]
[1765949927581,0.01156965,86433.0,86432.0,0.0475]
[1765949927793,0.01156965,86433.0,86432.0,0.11777]
[1765949927996,0.01157032,86428.0,86420.0,0.01157139]
[1765949928209,0.01157085,86424.0,86421.0,0.07027]
[1765949928852,0.01157005,86430.0,86429.0,0.11777]
[1765949930129,0.01157005,86430.0,86429.0,0.11977]
[1765949930336,0.01157005,86430.0,86429.0,0.12177]
[1765949931144,0.01156965,86433.0,86432.0,0.11777]
[1765949931338,0.01156938,86435.0,86434.0,0.11777]
[1765949932796,0.01156938,86435.0,86434.0,0.001]
[1765949933906,0.01156938,86435.0,86434.0,0.002]
[1765949936148,0.01156938,86435.0,86434.0,0.11977]
[1765949938869,0.2429532,86437.0,86434.0,0.11977]
[1765949939076,0.01156818,86444.0,86443.0,0.0475]
[1765949939305,0.01156818,86444.0,86443.0,0.11777]
[1765949940703,0.01156778,86447.0,86446.0,0.1534]
[1765949940852,0.23296046,86450.0,86449.0,0.23133258]
[1765949941259,0.00161287,86450.0,86449.0,0.0475]
[1765949941472,0.01156724,86451.0,86450.0,0.11777]
[1765949941882,0.01156724,86451.0,86448.0,0.01156764]
[1765949942317,0.01156764,86448.0,86444.0,0.01156818]
[1765949942688,0.01156778,86447.0,86444.0,0.01156818]
[1765949942863,0.01156791,86446.0,86443.0,0.08183831]
[1765949943106,0.01156778,86447.0,86444.0,0.08183818]
[1765949943542,0.24290382,86454.0,86447.0,0.01156778]
[1765949943763,0.01156684,86454.0,86453.0,0.11777]
[1765949943980,0.01156684,86454.0,86453.0,0.0475]
[1765949944444,0.23133957,86453.0,86451.0,0.03563]
[1765949944707,0.01156684,86454.0,86453.0,0.11357696]
[1765949944880,0.06355553,86469.0,86451.0,0.04719724]
[1765949944881,0.0115655,86464.0,86463.0,0.04748]
[1765949945073,0.03516594,86470.0,86467.0,0.04748]
[1765949945074,0.01156497,86468.0,86467.0,0.04748]
[1765949945348,0.01156497,86468.0,86467.0,0.12176]
[1765949945349,0.00011322,86468.0,86467.0,0.12176]
[1765949945531,0.0115655,86464.0,86459.0,0.01156617]
[1765949945743,0.01156523,86466.0,86463.0,0.12176]
[1765949946080,0.01156523,86466.0,86464.0,0.07428]
[1765949946260,0.0115651,86467.0,86464.0,0.0858455]
[1765949946490,0.00011322,86468.0,86467.0,0.04748]
[1765949946694,0.00011322,86468.0,86467.0,0.12176]
[1765949946919,0.23131517,86463.0,86462.0,0.04748]
[1765949947322,0.2428778,86464.0,86462.0,0.04748]
[1765949947526,0.01156523,86466.0,86462.0,0.05904577]
[1765949947738,0.23131549,86462.0,86461.0,0.001]
[1765949947950,0.23131549,86462.0,86461.0,0.002]
[1765949948157,0.24287755,86464.0,86461.0,0.002]
[1765949948158,0.23131534,86463.0,86461.0,0.002]
[1765949948367,0.23131534,86463.0,86462.0,0.001]
[1765949948559,0.23131534,86463.0,86461.0,0.03742]
[1765949948880,0.23131534,86463.0,86461.0,0.03842]
[1765949949085,0.23131534,86463.0,86461.0,0.03742]
[1765949949518,0.23131534,86463.0,86462.0,0.001]
[1765949950890,0.23131534,86463.0,86461.0,0.03742]
[1765949951103,0.23131534,86463.0,86462.0,0.001]
[1765949951773,0.23131534,86463.0,86461.0,0.03842]
[1765949951916,0.23131534,86463.0,86461.0,0.03742]
[1765949952140,0.23131534,86463.0,86462.0,0.001]
[1765949952798,0.23131534,86463.0,86461.0,0.001]
[1765949953467,0.23131534,86463.0,86451.0,0.03563]
[1765949953468,0.23133957,86453.0,86451.0,0.03563]
[1765949954832,0.24289024,86459.0,86451.0,0.03563]
[1765949954978,0.01156657,86456.0,86453.0,0.01156697]
[1765949955598,0.23133689,86454.0,86451.0,0.03963]
[1765949955831,0.2313417,86453.0,86451.0,0.03763]
[1765949956183,0.01156684,86454.0,86451.0,0.002]
[1765949956385,0.2429056,86454.0,86450.0,0.01156737]
[1765949956585,0.0115651,86467.0,86456.0,0.01156657]
[1765949956797,0.0115651,86467.0,86462.0,0.03742]
[1765949957036,0.0115651,86467.0,86462.0,0.1117]
[1765949957337,0.2428779,86464.0,86462.0,0.03742]
[1765949958156,0.23132172,86460.0,86458.0,0.07428]
[1765949958390,0.24288652,86461.0,86458.0,0.07428]
[1765949959323,0.0131781,86466.0,86461.0,0.0115659]
[1765949959526,0.0115651,86467.0,86466.0,0.12176]
[1765949959936,0.0115651,86467.0,86466.0,0.04748]
[1765949960151,0.23130479,86466.0,86465.0,0.03742]
[1765949961430,0.0115651,86467.0,86465.0,0.03742]
[1765949961652,0.0115651,86467.0,86466.0,0.12161221]
[1765949962219,0.00011322,86468.0,86466.0,0.12161221]
[1765949963601,0.00011322,86468.0,86466.0,0.12361221]
[1765949963846,0.00011322,86468.0,86466.0,0.002]
[1765949964059,0.23141309,86468.0,86466.0,0.002]
[1765949964245,0.23141309,86468.0,86466.0,0.004]
[1765949965238,0.00011322,86468.0,86467.0,0.12176]
[1765949965546,0.00011322,86468.0,86466.0,0.004]
[1765949966197,0.23130211,86467.0,86466.0,0.004]
[1765949966756,0.23130211,86467.0,86466.0,0.002]
[1765949967396,0.23130211,86467.0,86465.0,0.03742]
[1765949967806,0.23130211,86467.0,86460.0,0.08584604]
[1765949967807,0.24448008,86467.0,86466.0,0.004]
[1765949968312,0.24448008,86467.0,86466.0,0.002]
[1765949968978,0.24448008,86467.0,86465.0,0.002]
[1765949969186,0.24448008,86467.0,86465.0,0.003]
[1765949969605,0.24448008,86467.0,86465.0,0.002]
[1765949969824,0.24448008,86467.0,86466.0,0.001]
[1765949970180,0.0115655,86464.0,86458.0,0.39384062]
[1765949970372,0.01317797,86467.0,86463.0,0.01156564]
[1765949970564,0.24448186,86467.0,86465.0,0.001]
[1765949970779,0.24448186,86467.0,86464.0,0.07428]
[1765949971939,0.24448186,86467.0,86466.0,0.001]
[1765949972164,0.01317797,86467.0,86466.0,0.001]
[1765949972365,0.24448171,86467.0,86464.0,0.07428]
[1765949972579,0.24448171,86467.0,86464.0,0.07528]
[1765949972956,0.24448171,86467.0,86464.0,0.07428]
[1765949973157,0.24448171,86467.0,86466.0,0.001]
[1765949973589,0.23130746,86465.0,86464.0,0.07528]
[1765949973919,0.24448171,86467.0,86464.0,0.07628]
[1765949974129,0.24448171,86467.0,86464.0,0.07528]
[1765949974590,0.24448171,86467.0,86466.0,0.001]
[1765949974982,0.23130746,86465.0,86464.0,0.001]
[1765949975388,0.24448171,86467.0,86466.0,0.14894]
[1765949975803,0.24448171,86467.0,86466.0,0.14994]
[1765949976248,0.24448171,86467.0,86466.0,0.14894]
[1765949977112,0.24448171,86467.0,86466.0,0.14994]
[1765949977326,0.24448171,86467.0,86466.0,0.15094]
[1765949978897,0.24448171,86467.0,86466.0,0.08242]
[1765949979112,0.24448171,86467.0,86466.0,0.15404]
[1765949979337,0.24448171,86467.0,86466.0,0.002]
[1765949980216,0.24448171,86467.0,86466.0,0.12093]
[1765949980426,0.00161287,86467.0,86466.0,0.12093]
[1765949980633,0.00161287,86467.0,86466.0,0.12193]
[1765949981231,0.23141329,86468.0,86467.0,0.11993]
[1765949982494,0.23141329,86468.0,86467.0,0.12093]
[1765949983330,0.23141329,86468.0,86467.0,0.001]
[1765949984164,0.23141329,86468.0,86467.0,0.00055666]
[1765949984373,0.23131549,86462.0,86461.0,0.07158554]
[1765949984784,0.24287666,86464.0,86461.0,0.07158554]
[1765949985777,0.0115655,86464.0,86463.0,0.04831]
[1765949986192,0.23130767,86465.0,86464.0,0.04831]
[1765949986403,0.23130767,86465.0,86464.0,0.11993]
[1765949986614,0.0115651,86467.0,86466.0,0.11993]
[1765949987683,0.00011322,86468.0,86467.0,0.35123211]
[1765949987890,0.00011322,86468.0,86467.0,0.46476124]
[1765949989498,0.00011322,86468.0,86467.0,0.35223211]
[1765949989783,0.00011322,86468.0,86467.0,0.46576124]
[1765949990520,0.00011322,86468.0,86467.0,0.46476124]
[1765949990739,0.00011322,86468.0,86467.0,0.75546124]
[1765949991468,0.00011322,86468.0,86467.0,0.75746124]
[1765949991670,0.00011322,86468.0,86467.0,0.75946124]
[1765949991853,0.00011322,86468.0,86467.0,0.75746124]
[1765949992060,0.00011322,86468.0,86467.0,0.75946124]
[1765949992259,0.23121852,86499.0,86494.0,0.01156149]
[1765949992560,0.01156096,86498.0,86495.0,0.01156136]
[1765949992796,6.119e-05,86499.0,86493.0,0.01156162]
[1765949992797,0.01156109,86497.0,86493.0,0.01156162]
[1765949992999,0.01156096,86498.0,86494.0,0.08318149]
[1765949993377,0.01156136,86495.0,86492.0,0.03503]
[1765949993578,0.00054109,86493.0,86492.0,0.04659176]
[1765949994213,0.00054109,86493.0,86492.0,0.16652176]
[1765949994565,0.00054109,86493.0,86492.0,0.28005089]
[1765949995504,0.00154109,86493.0,86492.0,0.28005089]
[1765949995730,0.00054109,86493.0,86492.0,0.28005089]
[1765949996130,0.00663419,86504.0,86499.0,0.12508995]
[1765949996428,0.01156002,86505.0,86504.0,0.11993]
[1765949996659,0.01156002,86505.0,86504.0,0.05913225]
[1765949996967,0.01156002,86505.0,86504.0,0.01082225]
[1765949997932,0.01155962,86508.0,86504.0,0.01082225]
[1765949998132,0.01155935,86510.0,86506.0,0.30281538]
[1765949998357,0.01155909,86512.0,86508.0,0.24275211]
[1765949998522,0.01155909,86512.0,86511.0,0.11993]
[1765949998745,0.01155909,86512.0,86511.0,0.13075225]
[1765949998945,0.01155909,86512.0,86511.0,0.01082225]
[1765949999440,0.03051059,86512.0,86511.0,0.01082225]
[1765949999729,0.01317196,86512.0,86511.0,0.01082225]
[1765950001446,0.07188167,86512.0,86511.0,0.01082225]
[1765950001701,0.07088167,86512.0,86511.0,0.01082225]
[1765950001927,0.01417196,86512.0,86511.0,0.01082225]
[1765950002102,0.01477652,86512.0,86511.0,0.01182225]
[1765950002305,0.01377652,86512.0,86511.0,0.01082225]
[1765950002704,0.03111515,86512.0,86511.0,0.01082225]
[1765950003230,0.37952486,86512.0,86511.0,2.25e-06]
[1765950003429,0.01156229,86488.0,86485.0,0.01832]
[1765950003655,0.23124862,86487.0,86485.0,0.01838119]
[1765950003870,0.23124862,86487.0,86485.0,6.119e-05]
[1765950006896,0.23124862,86487.0,86485.0,0.00106119]
[1765950007495,0.01734384,86486.0,86485.0,0.00106119]
[1765950007686,0.05770971,86486.0,86485.0,0.00106119]
[1765950007886,0.01734384,86486.0,86485.0,0.00106119]
[1765950008088,0.23124862,86487.0,86485.0,0.00106119]
[1765950008305,0.05770971,86486.0,86485.0,6.119e-05]
[1765950008510,0.23124862,86487.0,86485.0,6.119e-05]
[1765950008720,0.001,86486.0,86485.0,6.119e-05]
[1765950009574,0.23224862,86487.0,86485.0,6.119e-05]
[1765950009793,0.23324862,86487.0,86485.0,6.119e-05]
[1765950009947,0.23224862,86487.0,86485.0,6.119e-05]
[1765950010941,0.23324862,86487.0,86485.0,6.119e-05]
[1765950011145,0.05770971,86486.0,86485.0,6.119e-05]
[1765950011786,0.23224862,86487.0,86485.0,6.119e-05]
[1765950012823,0.23124862,86487.0,86485.0,6.119e-05]
[1765950013906,0.23224862,86487.0,86485.0,6.119e-05]
[1765950014374,0.23224862,86487.0,86485.0,0.07196119]
[1765950014817,0.23224862,86487.0,86485.0,6.119e-05]
[1765950015035,0.001,86487.0,86486.0,0.24379335]
[1765950015781,0.001,86487.0,86486.0,0.01081422]
[1765950015985,0.01156216,86489.0,86486.0,0.01081422]
[1765950016185,0.23124595,86488.0,86487.0,0.01081422]
[1765950017548,0.23124595,86488.0,86487.0,0.01181422]
[1765950018843,0.23124595,86488.0,86487.0,0.01081422]
[1765950025709,0.01156216,86489.0,86487.0,0.01081422]
[1765950025886,0.01156216,86489.0,86488.0,0.13026422]
[1765950026040,0.01156216,86489.0,86488.0,0.01081422]
[1765950026494,0.03475224,86494.0,86493.0,0.46421171]
[1765950026688,0.0004,86522.0,86500.0,0.499883]
[1765950026689,4.58e-06,86501.0,86500.0,0.499883]
[1765950027097,4.58e-06,86501.0,86500.0,0.51069722]
[1765950027755,4.58e-06,86501.0,86500.0,0.80139722]
[1765950027965,4.58e-06,86501.0,86500.0,0.85141561]
[1765950028146,4.58e-06,86501.0,86500.0,1.12630061]
[1765950028570,4.58e-06,86501.0,86500.0,1.13030061]
[1765950028728,4.58e-06,86501.0,86500.0,1.11317761]
[1765950028909,4.58e-06,86501.0,86500.0,1.10917761]
[1765950029322,4.58e-06,86501.0,86500.0,1.09572261]
[1765950029527,4.58e-06,86501.0,86500.0,1.10072261]
[1765950030135,4.58e-06,86501.0,86500.0,0.86141561]
[1765950030432,4.58e-06,86501.0,86500.0,0.81139722]
[1765950030657,4.58e-06,86501.0,86500.0,0.82971722]
[1765950031553,0.10064074,86527.0,86522.0,0.01155775]
[1765950031758,0.10064074,86527.0,86521.0,0.24271563]
[1765950031759,0.23114706,86525.0,86523.0,0.01081422]
[1765950031957,0.23114706,86525.0,86524.0,0.01081422]
[1765950032358,0.23191056,86525.0,86524.0,0.01081422]
[1765950032757,0.23228834,86525.0,86524.0,0.01081422]
[1765950033126,0.23228834,86525.0,86524.0,0.01281422]
[1765950033971,0.00114128,86525.0,86524.0,0.01281422]
[1765950034167,0.23228834,86525.0,86524.0,0.01481422]
[1765950034992,0.00114128,86525.0,86524.0,0.01481422]
[1765950035194,0.23390121,86525.0,86524.0,0.01481422]
[1765950035972,0.23390121,86525.0,86524.0,0.06420422]
[1765950036396,0.23390121,86525.0,86524.0,0.01281422]
[1765950036618,0.23390121,86525.0,86524.0,0.01381422]
[1765950037096,0.23390121,86525.0,86524.0,0.01181422]
[1765950037300,0.23390121,86525.0,86524.0,0.01281422]
[1765950037845,0.23390121,86525.0,86524.0,0.01081422]
[1765950038128,0.00275415,86525.0,86524.0,0.01181422]
[1765950038374,0.00114128,86525.0,86524.0,0.13107422]
[1765950038581,0.00114128,86525.0,86524.0,0.24460335]
[1765950038959,0.00114128,86525.0,86524.0,0.13107422]
[1765950042563,0.00114128,86525.0,86524.0,0.25847233]
[1765950042709,0.00114128,86525.0,86524.0,0.24460335]
[1765950044135,0.00114128,86525.0,86524.0,0.24360335]
[1765950044352,0.00114128,86525.0,86524.0,0.24560335]
[1765950044554,0.00114128,86525.0,86524.0,0.24460335]
[1765950044790,0.00114128,86525.0,86524.0,0.24660335]